bitfinex/quotes_SOLUSD_20240818
["timestamp","ask_amount","ask_price","bid_price","bid_amount"]
[1723990628548,0.12549,145.73,145.64,20.0]
[1723990628755,23.97661467,145.73,145.63,16.2289]
[1723990628948,0.12549,145.71,145.63,16.2289]
[1723990635155,1.78661467,145.71,145.63,16.2289]
[1723990635456,22.31549,145.69,145.61,6.197]
[1723990635636,0.12549,145.67,145.6,16.1438]
[1723990637043,47.03759467,145.68,145.6,16.1438]
[1723990637235,0.12549,145.69,145.6,16.1438]
[1723990637438,0.12549,145.69,145.61,20.0]
[1723990637645,45.25098,145.7,145.61,20.0]
[1723990637955,45.25098,145.7,145.62,1.37314202]
[1723990638651,0.12549,145.69,145.62,1.37314202]
[1723990639233,0.25098,145.69,145.62,1.37314202]
[1723990639443,23.47848977,145.73,145.62,22.19]
[1723990639629,45.0,145.72,145.64,22.19]
[1723990639828,16.2959,145.73,145.65,20.0]
[1723990641048,0.12549,145.72,145.65,20.0]
[1723990641247,45.50196,145.72,145.65,20.0]
[1723990641665,47.16308467,145.72,145.65,20.0]
[1723990641964,45.50196,145.72,145.65,20.0]
[1723990642164,45.50196,145.72,145.63,20.0]
[1723990652260,1.19684744,145.71,145.63,20.0]
[1723990652759,1.19684744,145.71,145.64,1.3729405]
[1723990652958,1.19684744,145.71,145.64,22.19]
[1723990653164,15.3969,145.77,145.66,37.2162]
[1723990653475,7.7440675,145.76,145.68,22.19]
[1723990653671,15.3969,145.77,145.68,22.19]
[1723990653867,7.74401248,145.76,145.68,22.19]
[1723990654076,15.3969,145.77,145.69,0.61942693]
[1723990654455,15.3969,145.77,145.68,22.19]
[1723990655357,45.25098,145.76,145.68,22.19]
[1723990656676,0.12549,145.75,145.68,22.19]
[1723990656861,0.25098,145.75,145.66,15.0262]
[1723990657062,0.25098,145.74,145.67,20.0]
[1723990658778,0.25098,145.75,145.67,20.0]
[1723990658779,0.12549,145.75,145.67,20.0]
[1723990659669,0.12549,145.75,145.68,22.19]
[1723990660060,0.8664722,145.78,145.7,22.19]
[1723990660275,8.61273671,145.78,145.72,22.19]
[1723990660476,0.8664722,145.78,145.73,1.37205714]
[1723990660864,0.8664722,145.78,145.72,38.4832]
[1723990662361,0.8664722,145.78,145.74,22.19]
[1723990662561,0.8664722,145.78,145.76,22.19]
[1723990662773,0.8664722,145.78,145.74,22.19]
[1723990662966,0.8664722,145.78,145.75,20.0]
[1723990669582,0.8664722,145.78,145.75,21.37188633]
[1723990669792,0.8664722,145.78,145.76,1.37173403]
[1723990669995,0.8664722,145.78,145.75,20.0]
[1723990670402,0.8664722,145.78,145.76,23.56119909]
[1723990670589,0.8664722,145.78,145.76,22.19]
[1723990672176,0.8664722,145.78,145.75,20.0]
[1723990673003,0.8664722,145.78,145.76,23.5615982]
[1723990673178,0.8664722,145.78,145.77,1.37165558]
[1723990673506,0.8664722,145.78,145.77,20.0]
[1723990674178,0.8664722,145.78,145.77,65.0]
[1723990674574,0.8664722,145.78,145.77,20.0]
[1723990675778,0.8664722,145.78,145.77,41.1229]
[1723990676425,0.8664722,145.78,145.77,42.49385461]
[1723990676702,0.8664722,145.78,145.77,87.49385461]
[1723990677205,0.8664722,145.78,145.77,86.1229]
[1723990678086,0.8664722,145.78,145.77,80.0745]
[1723990678490,0.8664722,145.78,145.77,35.0745]
[1723990678811,0.8664722,145.78,145.77,20.0]
[1723990681902,0.8664722,145.78,145.77,65.0]
[1723990682209,0.12549,145.86,145.77,65.0]
[1723990682386,45.50196,145.86,145.77,65.0]
[1723990682590,45.50196,145.86,145.78,8.86]
[1723990682894,45.50196,145.86,145.79,20.0]
[1723990683096,1.19568574,145.85,145.79,20.0]
[1723990685018,1.19568574,145.85,145.82,8.86]
[1723990685801,1.19568574,145.85,145.8,8.86]
[1723990686327,21.6541722,145.87,145.82,8.86]
[1723990686620,16.5807,145.9,145.84,8.86]
[1723990688691,0.12549,145.89,145.82,8.86]
[1723990688890,8.86,145.88,145.81,20.0]
[1723990689323,0.50196,145.89,145.81,28.86]
[1723990689692,45.50196,145.89,145.81,28.86]
[1723990690029,0.50196,145.89,145.81,28.86]
[1723990690193,45.50196,145.89,145.81,28.86]
[1723990690631,0.50196,145.89,145.81,28.86]
[1723990690923,45.50196,145.89,145.81,28.86]
[1723990691135,16.5807,145.9,145.83,8.86]
[1723990691301,16.5807,145.9,145.84,1.37112723]
[1723990691695,0.25098,145.89,145.83,8.86]
[1723990692298,0.25098,145.89,145.81,28.86]
[1723990692502,0.25098,145.88,145.81,28.86]
[1723990693795,0.25098,145.87,145.79,8.86]
[1723990694018,0.25098,145.86,145.79,8.86]
[1723990694595,0.25098,145.86,145.81,8.86]
[1723990694819,0.25098,145.86,145.82,1.37092467]
[1723990694820,0.12549,145.86,145.82,1.37092467]
[1723990696032,0.12549,145.86,145.81,8.86]
[1723990696325,0.25098,145.86,145.79,8.86]
[1723990696520,0.25098,145.86,145.8,21.37145928]
[1723990696700,0.12549,145.86,145.8,20.0]
[1723990697107,0.25098,145.86,145.8,20.0]
[1723990700496,0.12549,145.85,145.77,15.3243]
[1723990700700,0.37647,145.85,145.77,24.1843]
[1723990701012,0.12549,145.84,145.77,24.1843]
[1723990701621,0.25098,145.84,145.77,8.86]
[1723990701821,8.86,145.82,145.73,16.0029]
[1723990702026,0.25098,145.83,145.75,8.86]
[1723990702323,0.12549,145.82,145.75,8.86]
[1723990702627,0.12549,145.84,145.77,8.86]
[1723990702920,21.7088,145.85,145.79,8.86]
[1723990703120,21.7088,145.85,145.8,1.37156662]
[1723990703626,21.7088,145.85,145.74,35.44]
[1723990703816,0.12549,145.84,145.78,8.86]
[1723990704219,21.7088,145.85,145.78,8.86]
[1723990705521,21.7088,145.85,145.79,20.0]
[1723990705926,0.12549,145.84,145.78,8.86]
[1723990706117,1.66112467,145.83,145.73,16.0029]
[1723990706319,9.11098,145.82,145.73,24.8629]
[1723990706524,0.25098,145.81,145.73,24.8629]
[1723990706703,0.12549,145.8,145.73,24.8629]
[1723990706901,0.12549,145.8,145.75,8.86]
[1723990707102,1.32144592,145.81,145.75,8.86]
[1723990707330,1.19595592,145.81,145.75,8.86]
[1723990708135,21.7088,145.85,145.76,1.3719282]
[1723990708308,21.7088,145.85,145.77,8.86]
[1723990708309,8.24527794,145.84,145.77,8.86]
[1723990708504,1.69778852,145.84,145.77,8.86]
[1723990708900,1.19582852,145.84,145.78,20.0]
[1723990709403,21.7088,145.85,145.78,20.0]
[1723990709713,8.86,145.83,145.74,8.86]
[1723990709906,8.86,145.83,145.75,20.0]
[1723990710313,7.74186595,145.82,145.75,20.0]
[1723990710543,0.12549,145.78,145.67,38.53989613]
[1723990710830,6.5694,145.79,145.7,8.86]
[1723990711030,6.5694,145.79,145.72,8.86]
[1723990711239,15.1394,145.8,145.74,8.86]
[1723990714217,15.1394,145.8,145.75,20.0]
[1723990719205,15.1394,145.8,145.69,16.0029]
[1723990719206,15.1394,145.8,145.72,8.86]
[1723990719414,0.12549,145.79,145.73,20.0]
[1723990721027,1.78661467,145.79,145.73,20.0]
[1723990721416,1.78661467,145.79,145.71,20.0]
[1723990722423,0.12549,145.78,145.69,24.8629]
[1723990722605,0.37647,145.78,145.69,24.8629]
[1723990722819,6.75479,145.77,145.69,8.86]
[1723990724321,6.75479,145.77,145.71,8.86]
[1723990724733,6.6293,145.77,145.71,8.86]
[1723990726116,1.66112467,145.76,145.69,8.86]
[1723990726338,1.66112467,145.76,145.7,20.0]
[1723990726912,0.12549,145.75,145.7,20.0]
[1723990727225,0.12549,145.75,145.68,20.0]
[1723990728241,0.25098,145.76,145.68,20.0]
[1723990728537,16.5996,145.75,145.68,20.0]
[1723990729327,0.12549,145.74,145.68,20.0]
[1723990729510,0.25098,145.74,145.68,20.0]
[1723990729707,0.25098,145.74,145.66,28.86]
[1723990733133,25.4596,145.75,145.68,8.86]
[1723990733134,16.5996,145.75,145.68,8.86]
[1723990733313,16.5996,145.75,145.69,20.0]
[1723990733514,16.5996,145.75,145.68,8.86]
[1723990733739,16.5996,145.75,145.69,20.0]
[1723990734046,16.5996,145.75,145.69,21.37247798]
[1723990734443,16.5996,145.75,145.69,20.0]
[1723990734742,16.5996,145.75,145.7,8.86]
[1723990737938,16.5996,145.75,145.69,20.0]
[1723990738142,16.5996,145.75,145.67,8.86]
[1723990738347,0.25098,145.74,145.68,20.0]
[1723990738548,0.25098,145.74,145.65,28.86]
[1723990738858,1.44754452,145.74,145.65,28.86]
[1723990739722,1.44754452,145.74,145.65,20.0]
[1723990739947,1.44754452,145.74,145.66,8.86]
[1723990740122,1.44754452,145.74,145.67,20.0]
[1723990740948,1.44754452,145.74,145.68,8.86]
[1723990741131,1.44754452,145.74,145.69,20.0]
[1723990741328,1.19656452,145.74,145.69,20.0]
[1723990742343,16.5996,145.75,145.69,20.0]
[1723990746756,16.5996,145.75,145.67,8.86]
[1723990746930,16.5996,145.75,145.68,20.0]
[1723990747130,0.25098,145.74,145.68,20.0]
[1723990747333,1.66112467,145.73,145.68,20.0]
[1723990747551,0.25098,145.74,145.68,20.0]
[1723990753356,0.25098,145.74,145.67,8.86]
[1723990753563,0.25098,145.74,145.68,20.0]
[1723990756839,0.25098,145.74,145.65,8.86]
[1723990756840,1.66112467,145.73,145.66,20.0]
[1723990757037,8.86,145.71,145.63,7.17922564]
[1723990757252,17.48191467,145.7,145.62,8.86]
[1723990758172,15.82079,145.7,145.62,8.86]
[1723990758662,15.82079,145.7,145.63,20.0]
[1723990759361,6.0457,145.72,145.68,8.86]
[1723990763670,15.6953,145.74,145.69,1.37206114]
[1723990763875,15.6953,145.74,145.68,8.86]
[1723990764172,7.17872676,145.78,145.72,8.86]
[1723990764173,15.6953,145.78,145.72,8.86]
[1723990764336,15.6953,145.78,145.73,21.37207402]
[1723990764543,15.6953,145.78,145.73,20.0]
[1723990765045,17.35642467,145.78,145.73,20.0]
[1723990765242,17.35642467,145.78,145.71,20.0]
[1723990765872,7.73586862,145.77,145.71,20.0]
[1723990766042,17.35642467,145.78,145.71,20.0]
[1723990766246,7.98684414,145.77,145.69,8.86]
[1723990766574,0.25098,145.77,145.7,20.0]
[1723990767857,7.72920582,145.76,145.7,20.0]
[1723990768054,0.25098,145.77,145.7,20.0]
[1723990768261,7.72821169,145.76,145.7,20.0]
[1723990768465,3.78549155,145.77,145.7,20.0]
[1723990768669,7.72740184,145.76,145.7,20.0]
[1723990768979,3.78310032,145.77,145.7,20.0]
[1723990769143,7.72274053,145.76,145.7,19.81196606]
[1723990769463,3.53212032,145.77,145.7,19.81196606]
[1723990769772,27.68970461,145.78,145.71,8.86]
[1723990770061,7.72401543,145.77,145.71,8.86]
[1723990770263,27.68970461,145.78,145.71,8.86]
[1723990770465,7.72422851,145.77,145.71,8.86]
[1723990770765,27.68970461,145.78,145.71,8.86]
[1723990771065,7.84963166,145.77,145.71,8.86]
[1723990771245,0.12549,145.77,145.71,8.86]
[1723990771451,0.25098,145.77,145.71,8.86]
[1723990772062,0.25098,145.77,145.71,10.23228441]
[1723990772262,0.25098,145.77,145.71,8.86]
[1723990772942,0.12549,145.77,145.71,8.86]
[1723990773286,18.04338792,145.79,145.73,8.86]
[1723990773567,15.53106752,145.81,145.75,8.86]
[1723990773775,7.72599638,145.8,145.76,1.37183107]
[1723990773948,28.50038792,145.82,145.77,10.23175952]
[1723990774151,7.72705957,145.81,145.77,10.23175952]
[1723990774461,16.5027,145.82,145.77,10.23175952]
[1723990776567,16.5027,145.82,145.77,8.86]
[1723990777954,16.5027,145.82,145.75,8.86]
[1723990778159,16.5027,145.82,145.76,20.0]
[1723990779473,18.16382467,145.82,145.74,8.86]
[1723990779671,18.16382467,145.82,145.75,20.0]
[1723990780675,16.5027,145.82,145.75,20.0]
[1723990782268,18.16382467,145.82,145.75,20.0]
[1723990782469,18.16382467,145.82,145.75,28.86]
[1723990782878,16.5027,145.82,145.75,28.86]
[1723990786072,16.5027,145.82,145.74,15.0757]
[1723990786275,0.25098,145.81,145.75,20.0]
[1723990787079,0.25098,145.81,145.7,0.12549]
[1723990787080,8.86,145.77,145.65,21.64343094]
[1723990787268,16.006,145.76,145.67,8.86]
[1723990788269,16.006,145.76,145.68,1.37209665]
[1723990788577,16.006,145.76,145.69,8.86]
[1723990789678,16.006,145.76,145.7,20.0]
[1723990789878,16.006,145.76,145.7,65.0]
[1723990790980,22.24389,145.8,145.71,8.86]
[1723990791173,0.12549,145.79,145.72,20.0]
[1723990791374,0.12549,145.79,145.73,1.37203966]
[1723990791699,0.12549,145.79,145.72,20.0]
[1723990792374,0.12549,145.79,145.73,1.37203112]
[1723990792581,0.12549,145.79,145.72,20.0]
[1723990793695,45.25098,145.79,145.72,20.0]
[1723990794074,0.25098,145.79,145.72,20.0]
[1723990794380,22.1184,145.8,145.72,20.0]
[1723990794569,23.31452856,145.8,145.72,20.0]
[1723990794770,22.1184,145.8,145.72,20.0]
[1723990795182,30.9784,145.8,145.72,20.0]
[1723990795585,0.12549,145.79,145.71,20.0]
[1723990795794,8.86,145.78,145.68,0.12549]
[1723990795995,0.12549,145.77,145.67,16.4]
[1723990796198,8.86,145.76,145.68,8.86]
[1723990796511,15.7452,145.74,145.65,16.0387194]
[1723990796882,15.7452,145.74,145.65,7.1787194]
[1723990797091,15.7452,145.74,145.65,16.0387194]
[1723990797692,15.7452,145.74,145.66,45.0]
[1723990798602,15.7452,145.74,145.67,8.86]
[1723990799102,15.7452,145.74,145.68,20.0]
[1723990799299,15.7452,145.74,145.69,1.37241914]
[1723990799984,15.7452,145.74,145.68,20.0]
[1723990800189,15.7452,145.74,145.69,53.86]
[1723990800396,21.7924,145.78,145.71,8.86]
[1723990800593,21.7924,145.78,145.72,21.37192764]
[1723990801098,21.7924,145.78,145.73,8.86]
[1723990801300,21.7924,145.78,145.74,20.0]
[1723990802277,21.7924,145.78,145.72,20.0]
[1723990804194,21.7924,145.82,145.73,67.17]
[1723990804401,21.7924,145.82,145.75,22.17]
[1723990804587,21.7924,145.82,145.76,21.32387127]
[1723990804991,21.7924,145.82,145.76,20.0]
[1723990806712,21.7924,145.82,145.77,1.37148243]
[1723990807090,21.7924,145.82,145.76,20.0]
[1723990811783,21.7924,145.82,145.71,22.17]
[1723990811979,0.12549,145.81,145.71,22.17]
[1723990813083,45.25098,145.81,145.71,22.17]
[1723990814210,45.25098,145.81,145.72,20.0]
[1723990814807,7.73119111,145.8,145.72,20.0]
[1723990815010,45.25098,145.81,145.72,20.0]
[1723990815207,7.73113533,145.8,145.72,20.0]
[1723990815397,45.25098,145.81,145.72,20.0]
[1723990816012,7.73541484,145.8,145.72,20.0]
[1723990816311,45.25098,145.81,145.72,20.0]
[1723990816525,7.73623802,145.8,145.72,20.0]
[1723990816806,45.25098,145.81,145.72,20.0]
[1723990817009,7.73668023,145.8,145.72,20.0]
[1723990817195,45.25098,145.81,145.72,20.0]
[1723990817381,7.73668605,145.8,145.72,20.0]
[1723990817581,45.25098,145.81,145.72,20.0]
[1723990817895,21.7924,145.82,145.73,22.29549]
[1723990818094,21.7924,145.82,145.74,65.0]
[1723990818990,21.7924,145.82,145.74,20.0]
[1723990819208,45.12549,145.81,145.74,20.0]
[1723990820209,12.01483822,145.87,145.78,22.17]
[1723990820426,7.73762229,145.86,145.79,21.37143217]
[1723990820621,7.73774596,145.85,145.8,1.37156152]
[1723990820924,10.39446633,145.87,145.79,21.37155088]
[1723990821222,14.59370968,145.86,145.75,15.6724]
[1723990821396,6.857,145.84,145.76,20.0]
[1723990821598,15.1235,145.82,145.72,22.17]
[1723990821802,7.73554363,145.81,145.72,42.17]
[1723990822002,15.1235,145.82,145.72,42.17]
[1723990822202,7.86112089,145.81,145.72,42.17]
[1723990822424,0.12549,145.81,145.73,1.37188049]
[1723990822736,0.12549,145.81,145.74,22.17]
[1723990822899,0.12549,145.81,145.75,21.37183259]
[1723990823297,0.12549,145.81,145.75,20.0]
[1723990823524,0.12549,145.81,145.76,1.37188068]
[1723990823808,15.1235,145.82,145.75,20.0]
[1723990824051,15.1235,145.82,145.76,1.3717678]
[1723990824209,15.1235,145.82,145.75,20.0]
[1723990824419,15.1235,145.82,145.77,8.86]
[1723990826513,15.1235,145.82,145.75,42.16]
[1723990828836,15.1235,145.82,145.76,45.0]
[1723990829204,15.1235,145.82,145.77,20.0]
[1723990831221,15.1235,145.82,145.76,20.0]
[1723990835807,22.3166,145.87,145.81,22.16]
[1723990836012,22.3166,145.87,145.83,22.16]
[1723990836013,16.2447,145.87,145.83,22.16]
[1723990836222,16.2447,145.87,145.84,21.36915631]
[1723990836616,6.0719,145.91,145.84,21.36915631]
[1723990836817,22.2542,145.91,145.84,21.36915631]
[1723990837516,0.12549,145.9,145.84,21.36915631]
[1723990838137,0.12549,145.9,145.84,20.0]
[1723990838315,0.25098,145.9,145.82,20.0]
[1723990838737,0.12549,145.89,145.82,20.0]
[1723990839134,0.12549,145.9,145.82,20.0]
[1723990839638,0.25098,145.9,145.82,20.0]
[1723990840616,0.25098,145.9,145.83,1.37070943]
[1723990841110,22.2542,145.91,145.83,22.16]
[1723990841310,22.2542,145.91,145.85,22.16]
[1723990841514,22.2542,145.91,145.86,20.0]
[1723990842635,22.2542,145.91,145.84,20.0]
[1723990842839,22.2542,145.91,145.84,1.37097119]
[1723990843146,22.2542,145.91,145.82,20.0]
[1723990843641,0.12549,145.9,145.82,20.0]
[1723990845131,22.2542,145.91,145.83,1.37037085]
[1723990845334,22.2542,145.91,145.82,20.0]
[1723990846221,0.12549,145.9,145.82,20.0]
[1723990847419,22.2542,145.91,145.82,20.0]
[1723990848451,22.2542,145.91,145.83,67.28549]
[1723990848811,22.2542,145.91,145.84,20.0]
[1723990850031,1.66112467,145.9,145.84,20.0]
[1723990850342,22.2542,145.91,145.84,20.0]
[1723990851840,23.91532467,145.91,145.84,20.0]
[1723990852627,22.2542,145.91,145.84,20.0]
[1723990852938,23.91532467,145.91,145.84,20.0]
[1723990853116,22.2542,145.91,145.84,20.0]
[1723990853721,0.12549,145.9,145.84,20.0]
[1723990855523,22.2542,145.91,145.84,20.0]
[1723990856330,23.91532467,145.91,145.84,20.0]
[1723990856640,0.12549,145.9,145.84,20.0]
[1723990857244,23.44939193,145.91,145.84,20.0]
[1723990859857,0.12549,145.9,145.84,20.0]
[1723990860156,8.86,145.88,145.79,8.86]
[1723990860335,8.86,145.88,145.8,20.0]
[1723990860540,54.36196,145.9,145.81,8.86]
[1723990860847,54.36196,145.9,145.82,20.0]
[1723990864072,54.23647,145.9,145.82,20.0]
[1723990864440,22.37969,145.91,145.83,8.86]
[1723990864633,0.12549,145.9,145.84,20.0]
[1723990865945,1.78661467,145.9,145.84,20.0]
[1723990866666,0.12549,145.9,145.84,20.0]
[1723990866862,1.91210467,145.9,145.84,20.0]
[1723990867169,0.25098,145.9,145.84,20.0]
[1723990868768,45.25098,145.9,145.84,20.0]
[1723990870344,0.12549,145.89,145.84,20.0]
[1723990870558,0.25098,145.89,145.84,20.0]
[1723990870757,0.25098,145.89,145.84,21.37112027]
[1723990870968,0.25098,145.89,145.84,20.0]
[1723990871867,0.12549,145.85,145.77,7.17169488]
[1723990872050,8.86,145.84,145.74,6.3734]
[1723990872253,0.12549,145.83,145.75,8.86]
[1723990873455,0.25098,145.83,145.75,8.86]
[1723990875163,0.25098,145.83,145.76,20.0]
[1723990876269,0.25098,145.85,145.77,10.23125143]
[1723990876474,0.12549,145.84,145.78,20.0]
[1723990877182,0.25098,145.84,145.78,20.0]
[1723990877483,0.25098,145.84,145.76,8.86]
[1723990877679,0.25098,145.84,145.77,20.0]
[1723990881166,16.71339,145.83,145.73,33.36005674]
[1723990881369,16.71339,145.83,145.73,7.17092285]
[1723990881370,16.5879,145.79,145.73,7.17092285]
[1723990881576,1.66112467,145.78,145.71,8.86]
[1723990881880,1.66112467,145.78,145.69,10.52823389]
[1723990881881,0.12549,145.77,145.69,8.86]
[1723990882206,0.25098,145.77,145.69,8.86]
[1723990882482,0.25098,145.77,145.67,8.86]
[1723990882483,6.3042,145.75,145.67,8.86]
[1723990882697,46.5879,145.74,145.67,8.86]
[1723990882854,0.12549,145.73,145.65,19.38823389]
[1723990883053,55.57339,145.74,145.65,19.38823389]
[1723990883254,46.71339,145.74,145.67,8.86]
[1723990883478,0.12549,145.73,145.65,8.86]
[1723990884056,9.11098,145.73,145.61,23.77634594]
[1723990884360,45.25098,145.72,145.64,8.86]
[1723990884562,1.66112467,145.71,145.62,22.2]
[1723990885387,0.25098,145.7,145.61,7.16564594]
[1723990885592,6.3042,145.69,145.59,22.2]
[1723990885889,1.78661467,145.68,145.59,22.2]
[1723990886587,46.78661467,145.68,145.59,22.2]
[1723990886968,1.78661467,145.67,145.59,22.2]
[1723990887163,1.78661467,145.67,145.58,7.16657885]
[1723990887164,0.12549,145.66,145.58,7.16657885]
[1723990887366,0.12549,145.64,145.58,7.16657885]
[1723990887562,1.66112467,145.64,145.51,22.2]
[1723990887752,0.37647,145.63,145.51,22.2]
[1723990889158,2.03759467,145.63,145.52,20.0]
[1723990889367,28.5042,145.65,145.53,22.2]
[1723990889581,6.3042,145.65,145.57,22.2]
[1723990889868,6.3042,145.65,145.53,22.32549]
[1723990890179,45.12549,145.64,145.54,20.0]
[1723990890555,46.78661467,145.64,145.54,20.0]
[1723990890781,0.12549,145.63,145.54,20.0]
[1723990890979,0.12549,145.63,145.51,22.2]
[1723990890980,1.91210467,145.63,145.51,22.2]
[1723990891162,0.12549,145.62,145.51,22.2]
[1723990891362,0.25098,145.62,145.51,22.2]
[1723990891660,0.12549,145.62,145.53,22.2]
[1723990892272,0.12549,145.62,145.54,20.0]
[1723990892787,0.37647,145.63,145.54,20.0]
[1723990895389,2.03759467,145.63,145.54,20.0]
[1723990895568,0.37647,145.63,145.54,20.0]
[1723990895992,0.37647,145.63,145.55,1.37374037]
[1723990896492,0.37647,145.63,145.55,23.57374037]
[1723990897292,0.37647,145.63,145.54,20.0]
[1723990898174,2.03759467,145.63,145.54,20.0]
[1723990898375,0.37647,145.63,145.54,20.0]
[1723990900275,0.12549,145.63,145.54,20.0]
[1723990900485,0.25098,145.63,145.54,20.0]
[1723990901000,1.19752597,145.62,145.54,20.0]
[1723990901368,1.19752597,145.62,145.55,22.2]
[1723990901894,0.25098,145.63,145.55,22.2]
[1723990902484,0.12549,145.63,145.55,22.2]
[1723990904105,0.37647,145.63,145.55,22.2]
[1723990907709,0.37647,145.63,145.54,20.0]
[1723990908603,0.37647,145.63,145.55,8.89]
[1723990910200,6.3042,145.65,145.59,8.89]
[1723990910428,6.3042,145.65,145.56,20.0]
[1723990910709,6.3042,145.65,145.6,8.89]
[1723990911386,6.3042,145.65,145.58,8.89]
[1723990912702,6.3042,145.65,145.6,8.89]
[1723990913410,6.3042,145.65,145.62,8.89]
[1723990914611,6.3042,145.65,145.6,8.89]
[1723990916412,16.5879,145.66,145.64,8.89]
[1723990916620,6.3932,145.68,145.64,8.89]
[1723990916790,6.3932,145.68,145.66,8.89]
[1723990917791,6.3932,145.68,145.61,0.12549]
[1723990917996,6.3932,145.68,145.61,28.89]
[1723990918801,6.3932,145.68,145.63,8.89]
[1723990919124,6.3932,145.68,145.64,20.0]
[1723990919695,15.69,145.7,145.67,8.89]
[1723990920317,15.69,145.7,145.65,8.89]
[1723990920497,15.69,145.7,145.64,20.0]
[1723990920812,15.69,145.7,145.65,8.89]
[1723990921114,15.69,145.7,145.66,20.0]
[1723990921704,15.69,145.7,145.67,8.89]
[1723990922591,6.3932,145.73,145.67,8.89]
[1723990922810,6.3932,145.7,145.58,15.0824]
[1723990923011,15.69,145.69,145.6,8.89]
[1723990923391,15.69,145.69,145.62,8.89]
[1723990924019,15.69,145.69,145.6,8.89]
[1723990924224,15.69,145.69,145.61,20.0]
[1723990924726,15.69,145.69,145.62,22.21]
[1723990925022,15.69,145.69,145.63,21.37281813]
[1723990925190,15.69,145.69,145.63,20.0]
[1723990925394,15.69,145.69,145.64,1.37283509]
[1723990925599,15.69,145.69,145.65,1.37280232]
[1723990928400,15.69,145.69,145.65,20.0]
[1723990929326,15.69,145.69,145.63,20.0]
[1723990929500,15.69,145.69,145.6,22.21]
[1723990930728,45.37647,145.68,145.61,20.0]
[1723990930915,45.37647,145.68,145.59,20.0]
[1723990933219,15.69,145.69,145.6,22.33549]
[1723990933431,15.69,145.69,145.61,1.3729808]
[1723990933613,15.69,145.69,145.61,21.3729808]
[1723990934412,15.69,145.69,145.61,20.0]
[1723990937831,15.69,145.69,145.62,23.70848417]
[1723990938014,15.69,145.69,145.63,65.0]
[1723990938204,15.69,145.69,145.64,1.37279371]
[1723990938404,15.69,145.69,145.64,22.21]
[1723990938609,15.69,145.69,145.65,20.0]
[1723990939706,6.3932,145.7,145.66,22.33549]
[1723990939903,6.3932,145.7,145.67,20.0]
[1723990940520,6.3932,145.7,145.65,20.0]
[1723990942412,1.66112467,145.69,145.61,0.12549]
[1723990942613,17.96102467,145.69,145.61,0.12549]
[1723990943323,17.96102467,145.69,145.58,15.6767]
[1723990943520,45.37647,145.68,145.58,22.21]
[1723990943727,1.66112467,145.67,145.58,22.21]
[1723990944046,6.4715,145.66,145.56,39.32551296]
[1723990944212,16.42539,145.65,145.56,29.38220685]
[1723990944410,18.08651467,145.65,145.56,29.38220685]
[1723990944912,1.66112467,145.64,145.56,7.17220685]
[1723990945131,1.66112467,145.63,145.56,7.17220685]
[1723990945329,6.4715,145.61,145.52,22.21]
[1723990945718,1.66112467,145.6,145.52,29.38686158]